[Event "29th Czech Open-Rapid 2018"]
[Site "Pardubice"]
[Date "2018.07.18"]
[Round "3"]
[White "Pavlicek, Lukas"]
[Black "Vykydal, Frantisek"]
[Result "1/2-1/2"]
[ECO "A25"]
[WhiteElo "1819"]
[BlackElo "2089"]
[Annotator "NA RC"]
[PlyCount "207"]
[EventDate "2018.07.18"]
[EventType "swiss"]
[EventCountry "CZE"]
[SourceTitle "playchess.com"]
[Source "ChessBase"]
[SourceQuality "1"]
[TimeControl "900+10"]

1. c4 {[%emt 0:00:00]} e5 {[%emt 0:00:00]} 2. Nc3 {[%emt 0:00:00]} Nc6 {[%emt 0:00:00]} 3. g3 {[%emt 0:00:00]} Nf6 {[%emt 0:00:00]} 4. Bg2 {[%emt 0:00:00]} d6 {[%emt 0:00:00]} 5. e3 {[%emt 0:00:03]} Be6 {[%emt 0:00:03]} 6. d3 {[%emt 0:00:09]} Be7 {[%emt 0:00:03]} 7. Nd5 {[%emt 0:00:11]} O-O {[%emt 0:00:12]} 8. Ne2 {[%emt 0:00:05]} Qd7 {[%emt 0:00:32]} 9. O-O {[%emt 0:00:49]} Nd8 {[%emt 0:00:01]} 10. Nec3 {[%emt 0:00:26]} c6 {[%emt 0:00:07]} 11. Nxe7+ {[%emt 0:00:14]} Qxe7 {[%emt 0:00:02]} 12. e4 {[%emt 0:00:23]} Nd7 {[%emt 0:00:11]} 13. f4 {[%emt 0:01:02]} f5 {[%emt 0:00:07]} 14. b3 {[%emt 0:00:35]} exf4 {[%emt 0:00:46]} 15. gxf4 {[%emt 0:00:41]} Nf6 {[%emt 0:00:23]} 16. e5 {[%emt 0:00:44]} Ng4 {[%emt 0:00:37]} 17. h3 {[%emt 0:00:34]} Nh6 {[%emt 0:00:07]} 18. d4 {[%emt 0:00:19]} dxe5 {[%emt 0:00:21]} 19. fxe5 {[%emt 0:00:16]} Bd7 {[%emt 0:01:46]} 20. Re1 {[%emt 0:01:17]} f4 {[%emt 0:00:37]} 21. Qf3 {[%emt 0:03:06]} Qh4 {[%emt 0:00:29]} 22. Ba3 {[%emt 0:00:36]} Re8 {[%emt 0:01:03]} 23. d5 {[%emt 0:00:27]} Nf5 {[%emt 0:00:43]} 24. e6 {[%emt 0:00:45]} Bc8 {[%emt 0:00:53]} 25. Re4 {[%emt 0:00:51]} g5 {[%emt 0:00:32]} 26. Rae1 {[%emt 0:01:25]} h5 {[%emt 0:02:51]} 27. Qf2 {[%emt 0:01:31]} Kh7 {[%emt 0:02:14]} 28. Qxh4 {[%emt 0:00:17]} Nxh4 {[%emt 0:00:02]} 29. Rf1 {[%emt 0:00:37]} Kg6 {[%emt 0:00:12]} 30. Ree1 {[%emt 0:00:49]} Nxg2 {[%emt 0:00:51]} 31. Kxg2 {[%emt 0:00:01]} Kf5 {[%emt 0:00:01]} 32. Ne4 {[%emt 0:00:13]} Kg6 {[%emt 0:00:45]} 33. Nd6 {[%emt 0:00:12]} Rg8 {[%emt 0:01:02]} 34. e7 {[%emt 0:00:16]} Bd7 {[%emt 0:00:19]} 35. e8=Q+ {[%emt 0:00:37]} Bxe8 {[%emt 0:00:04]} 36. Rxe8 {[%emt 0:00:20]} Rxe8 {[%emt 0:00:07]} 37. Nxe8 {[%emt 0:00:01]} Nf7 {[%emt 0:00:01]} 38. Nd6 {[%emt 0:00:31]} Nxd6 {[%emt 0:00:09]} 39. Bxd6 {[%emt 0:00:02]} cxd5 {[%emt 0:00:05]} 40. cxd5 {[%emt 0:00:21]} Rd8 {[%emt 0:00:01]} 41. Bc5 {[%emt 0:00:29]} b6 {[%emt 0:00:06]} 42. Bb4 {[%emt 0:00:06]} Rxd5 {[%emt 0:00:02]} 43. Re1 {[%emt 0:00:14]} a5 {[%emt 0:00:05]} 44. Be7 {[%emt 0:00:24]} Rd2+ {[%emt 0:00:08]} 45. Kg1 {[%emt 0:00:04]} g4 {[%emt 0:00:19]} 46. hxg4 {[%emt 0:00:14]} hxg4 {[%emt 0:00:02]} 47. Rf1 {[%emt 0:00:05]} f3 {[%emt 0:00:06]} 48. Bh4 {[%emt 0:00:15]} Rxa2 {[%emt 0:00:04]} 49. Bd8 {[%emt 0:00:09]} b5 {[%emt 0:00:05]} 50. Rd1 {[%emt 0:00:12]} a4 {[%emt 0:00:16]} 51. bxa4 {[%emt 0:00:11]} bxa4 {[%emt 0:00:06]} 52. Rd4 {[%emt 0:00:02]} Kf5 {[%emt 0:00:03]} 53. Rd5+ {[%emt 0:00:17]} Ke4 {[%emt 0:00:05]} 54. Rg5 {[%emt 0:00:05]} Rg2+ {[%emt 0:00:13]} 55. Kf1 {[%emt 0:00:06]} a3 {[%emt 0:00:08]} 56. Ra5 {[%emt 0:00:02]} g3 {[%emt 0:00:09]} 57. Rxa3 {[%emt 0:00:10]} Rf2+ {[%emt 0:00:11]} 58. Kg1 {[%emt 0:00:08]} Rh2 {[%emt 0:00:11]} 59. Ra4+ {[%emt 0:00:06]} Kd5 {[%emt 0:00:08]} 60. Ra5+ {[%emt 0:00:19]} Kc4 {[%emt 0:00:05]} 61. Rf5 {[%emt 0:00:17]} f2+ {[%emt 0:00:05]} 62. Kf1 {[%emt 0:00:01]} Rh1+ {[%emt 0:00:04]} 63. Kg2 {[%emt 0:00:01]} Rg1+ {[%emt 0:00:03]} 64. Kh3 {[%emt 0:00:06]} Kd3 {[%emt 0:00:16]} 65. Bc7 {[%emt 0:00:20]} f1=Q+ {[%emt 0:00:20]} 66. Rxf1 {[%emt 0:00:01]} Rxf1 {[%emt 0:00:04]} 67. Kxg3 {[%emt 0:00:02]} Ke4 {[%emt 0:00:02]} 68. Kg2 {[%emt 0:00:08]} Rf7 {[%emt 0:00:04]} 69. Bb6 {[%emt 0:00:07]} Kd3 {[%emt 0:00:04]} 70. Kg3 {[%emt 0:00:09]} Ke2 {[%emt 0:00:02]} 71. Kg4 {[%emt 0:00:07]} Kf1 {[%emt 0:00:05]} 72. Kg5 {[%emt 0:00:23]} Kg2 {[%emt 0:00:02]} 73. Kg6 {[%emt 0:00:07]} Rf3 {[%emt 0:00:10]} 74. Bd4 {[%emt 0:00:08]} Kg3 {[%emt 0:00:04]} 75. Bf6 {[%emt 0:00:21]} Kg4 {[%emt 0:00:02]} 76. Kf7 {[%emt 0:00:20]} Re3 {[%emt 0:00:06]} 77. Bd4 {[%emt 0:00:09]} Re4 {[%emt 0:00:01]} 78. Bc5 {[%emt 0:00:02]} Kf5 {[%emt 0:00:02]} 79. Be7 {[%emt 0:00:11]} Rd4 {[%emt 0:00:05]} 80. Bc5 {[%emt 0:00:27]} Rd7+ {[%emt 0:00:04]} 81. Kg8 {[%emt 0:00:19]} Kf6 {[%emt 0:00:12]} 82. Bb4 {[%emt 0:00:10]} Rb7 {[%emt 0:00:19]} 83. Bc3+ {[%emt 0:00:02]} Kg6 {[%emt 0:00:03]} 84. Kf8 {[%emt 0:00:02]} Rd7 {[%emt 0:00:07]} 85. Ke8 {[%emt 0:00:03]} Rc7 {[%emt 0:00:03]} 86. Bb2 {[%emt 0:00:06]} Kf5 {[%emt 0:00:03]} 87. Kd8 {[%emt 0:00:05]} Rb7 {[%emt 0:00:01]} 88. Bc3 {[%emt 0:00:05]} Ke6 {[%emt 0:00:01]} 89. Be1 {[%emt 0:00:16]} Rb1 {[%emt 0:00:29]} 90. Bg3 {[%emt 0:00:06]} Rc1 {[%emt 0:00:02]} 91. Bh2 {[%emt 0:00:08]} Rc2 {[%emt 0:00:15]} 92. Bg3 {[%emt 0:00:02]} Rc3 {[%emt 0:00:04]} 93. Bh2 {[%emt 0:00:03]} Rh3 {[%emt 0:00:06]} 94. Bf4 {[%emt 0:00:06]} Rh7 {[%emt 0:00:03]} 95. Bg3 {[%emt 0:00:05]} Rg7 {[%emt 0:00:10]} 96. Bh2 {[%emt 0:00:04]} Rg8+ {[%emt 0:00:12]} 97. Kc7 {[%emt 0:00:04]} Rg2 {[%emt 0:00:02]} 98. Bf4 {[%emt 0:00:08]} Rf2 {[%emt 0:00:06]} 99. Bg3 {[%emt 0:00:04]} Rc2+ {[%emt 0:00:09]} 100. Kd8 {[%emt 0:00:20]} Rg2 {[%emt 0:00:16]} 101. Bf4 {[%emt 0:00:02]} Rg7 {[%emt 0:00:08]} 102. Bh2 {[%emt 0:00:04]} Rh7 {[%emt 0:00:06]} 103. Bg3 {[%emt 0:00:02]} Rh3 {[%emt 0:00:05]} 104. Bf4 {[%emt 0:00:01]} 1/2-1/2

[Event "29th Czech Open-Rapid 2018"]
[Site "Pardubice"]
[Date "2018.07.18"]
[Round "3"]
[White "Tomek, Karel"]
[Black "Haase, Pavel"]
[Result "0-1"]
[ECO "A46"]
[WhiteElo "1785"]
[BlackElo "1994"]
[Annotator "NA RC"]
[PlyCount "92"]
[EventDate "2018.07.18"]
[EventType "swiss"]
[EventCountry "CZE"]
[SourceTitle "playchess.com"]
[Source "ChessBase"]
[SourceQuality "1"]
[TimeControl "900+10"]

1. d4 {[%emt 0:00:00]} Nf6 {[%emt 0:00:00]} 2. Nf3 {[%emt 0:00:00]} e6 {[%emt 0:00:00]} 3. e3 {[%emt 0:00:00]} b6 {[%emt 0:00:00]} 4. Bd3 {[%emt 0:00:05]} Bb7 {[%emt 0:00:00]} 5. O-O {[%emt 0:00:02]} Be7 {[%emt 0:00:01]} 6. Nbd2 {[%emt 0:00:02]} O-O {[%emt 0:00:04]} 7. b3 {[%emt 0:00:01]} c5 {[%emt 0:00:04]} 8. Bb2 {[%emt 0:00:02]} d6 {[%emt 0:00:11]} 9. c4 {[%emt 0:00:50]} Nbd7 {[%emt 0:00:05]} 10. Rc1 {[%emt 0:00:52]} Re8 {[%emt 0:00:01]} 11. e4 {[%emt 0:00:32]} cxd4 {[%emt 0:00:04]} 12. Bxd4 {[%emt 0:00:41]} Nc5 {[%emt 0:00:03]} 13. Bxc5 {[%emt 0:00:05]} bxc5 {[%emt 0:00:13]} 14. Qc2 {[%emt 0:00:03]} Qc7 {[%emt 0:00:12]} 15. Rfe1 {[%emt 0:00:27]} Nd7 {[%emt 0:00:02]} 16. e5 {[%emt 0:00:29]} dxe5 {[%emt 0:01:12]} 17. Bxh7+ {[%emt 0:00:04]} Kh8 {[%emt 0:00:01]} 18. Be4 {[%emt 0:00:06]} Bxe4 {[%emt 0:00:12]} 19. Rxe4 {[%emt 0:00:05]} f5 {[%emt 0:00:07]} 20. Ree1 {[%emt 0:00:11]} g5 {[%emt 0:01:57]} 21. Kf1 {[%emt 0:00:54]} Bf6 {[%emt 0:01:31]} 22. Ng1 {[%emt 0:01:29]} e4 {[%emt 0:00:34]} 23. g3 {[%emt 0:01:22]} Ne5 {[%emt 0:00:27]} 24. h3 {[%emt 0:01:14]} Nd3 {[%emt 0:00:22]} 25. Re3 {[%emt 0:02:35]} Nxc1 {[%emt 0:00:11]} 26. Qxc1 {[%emt 0:00:02]} Bd4 {[%emt 0:00:06]} 27. Re2 {[%emt 0:00:01]} Rad8 {[%emt 0:00:23]} 28. Kg2 {[%emt 0:00:07]} Qg7 {[%emt 0:00:17]} 29. Nf1 {[%emt 0:00:04]} Bf6 {[%emt 0:00:52]} 30. Qc2 {[%emt 0:01:10]} Qd7 {[%emt 0:00:13]} 31. Rd2 {[%emt 0:01:14]} Qb7 {[%emt 0:00:14]} 32. Kh2 {[%emt 0:00:42]} Rxd2 {[%emt 0:00:06]} 33. Qxd2 {[%emt 0:00:01]} Rd8 {[%emt 0:00:12]} 34. Qe3 {[%emt 0:00:11]} Qc6 {[%emt 0:00:52]} 35. h4 {[%emt 0:00:04]} f4 {[%emt 0:01:25]} 36. gxf4 {[%emt 0:00:22]} Rd3 {[%emt 0:00:18]} 37. Qe2 {[%emt 0:00:02]} gxf4 {[%emt 0:01:00]} 38. Qh5+ {[%emt 0:00:12]} Kg7 {[%emt 0:00:01]} 39. Qg4+ {[%emt 0:00:11]} Kf7 {[%emt 0:00:02]} 40. h5 {[%emt 0:00:41]} e5 {[%emt 0:01:58]} 41. Nh3 {[%emt 0:01:53]} Qe6 {[%emt 0:00:47]} 42. Qg2 {[%emt 0:01:14]} Ke7 {[%emt 0:00:43]} 43. h6 {[%emt 0:00:49]} Bh8 {[%emt 0:00:25]} 44. h7 {[%emt 0:00:11]} Qh6 {[%emt 0:00:45]} 45. Qg5+ {[%emt 0:00:19]} Qxg5 {[%emt 0:00:04]} 46. Nxg5 {[%emt 0:00:01]} e3 {[%emt 0:00:34]} 0-1

[Event "29th Czech Open-Rapid 2018"]
[Site "Pardubice"]
[Date "2018.07.19"]
[Round "4"]
[White "Zakhartsov, Viacheslav V"]
[Black "Kathmale, Sameer"]
[Result "1-0"]
[ECO "D10"]
[WhiteElo "2475"]
[BlackElo "2272"]
[Annotator "RC"]
[PlyCount "91"]
[EventDate "2018.07.18"]
[EventType "swiss"]
[EventCountry "CZE"]
[SourceTitle "playchess.com"]
[Source "ChessBase"]
[SourceQuality "1"]
[TimeControl "900+10"]

1. d4 {[%emt 0:00:00]} d5 {[%emt 0:00:00]} 2. c4 {[%emt 0:00:00]} c6 {[%emt 0:00:00]} 3. Nc3 {[%emt 0:00:00]} Nf6 {[%emt 0:00:00]} 4. e3 {[%emt 0:00:00]} Bf5 {[%emt 0:00:00]} 5. cxd5 {[%emt 0:00:03]} cxd5 {[%emt 0:00:05]} 6. Qb3 {[%emt 0:00:02]} Nc6 {[%emt 0:00:02]} 7. Qxb7 {[%emt 0:00:02]} Bd7 {[%emt 0:00:24]} 8. Qb3 {[%emt 0:00:02]} Rb8 {[%emt 0:00:01]} 9. Qd1 {[%emt 0:00:02]} e5 {[%emt 0:00:02]} 10. dxe5 {[%emt 0:00:05]} Nxe5 {[%emt 0:00:03]} 11. Nge2 {[%emt 0:00:05]} Bd6 {[%emt 0:00:12]} 12. Nf4 {[%emt 0:00:12]} Bc6 {[%emt 0:00:02]} 13. Be2 {[%emt 0:00:35]} Ng6 {[%emt 0:00:12]} 14. O-O {[%emt 0:00:57]} Bxf4 {[%emt 0:00:30]} 15. exf4 {[%emt 0:00:02]} d4 {[%emt 0:00:02]} 16. Nb1 {[%emt 0:02:55]} Nh4 {[%emt 0:01:15]} 17. f3 {[%emt 0:00:23]} Nf5 {[%emt 0:03:24]} 18. Qc2 {[%emt 0:05:03]} Qd7 {[%emt 0:03:49]} 19. Na3 {[%emt 0:01:52]} Nd5 {[%emt 0:00:33]} 20. Nc4 {[%emt 0:00:32]} Nb4 {[%emt 0:00:58]} 21. Qxf5 {[%emt 0:00:19]} Qxf5 {[%emt 0:01:19]} 22. Nd6+ {[%emt 0:00:18]} Kf8 {[%emt 0:00:10]} 23. Nxf5 {[%emt 0:00:03]} d3 {[%emt 0:00:03]} 24. Bd1 {[%emt 0:00:13]} g6 {[%emt 0:00:09]} 25. Nd4 {[%emt 0:00:11]} Bd5 {[%emt 0:00:02]} 26. b3 {[%emt 0:00:10]} Kg7 {[%emt 0:00:13]} 27. Bb2 {[%emt 0:00:30]} f6 {[%emt 0:00:01]} 28. a3 {[%emt 0:00:23]} Na6 {[%emt 0:00:31]} 29. Rc1 {[%emt 0:00:21]} Rhe8 {[%emt 0:00:23]} 30. Rc3 {[%emt 0:00:50]} d2 {[%emt 0:00:38]} 31. Kf2 {[%emt 0:00:41]} Rb7 {[%emt 0:00:27]} 32. Be2 {[%emt 0:00:10]} Nc7 {[%emt 0:00:24]} 33. Rd1 {[%emt 0:00:04]} Bf7 {[%emt 0:00:11]} 34. g3 {[%emt 0:00:24]} Nd5 {[%emt 0:00:15]} 35. Rd3 {[%emt 0:00:06]} Rbe7 {[%emt 0:00:20]} 36. R1xd2 {[%emt 0:00:07]} Ne3 {[%emt 0:00:01]} 37. Nc6 {[%emt 0:00:11]} Re6 {[%emt 0:00:01]} 38. Nd8 {[%emt 0:00:04]} R6e7 {[%emt 0:00:14]} 39. Nxf7 {[%emt 0:00:02]} Kxf7 {[%emt 0:00:02]} 40. Rd7 {[%emt 0:00:06]} Nf5 {[%emt 0:00:13]} 41. Bc4+ {[%emt 0:00:07]} Kg7 {[%emt 0:00:05]} 42. Rxe7+ {[%emt 0:00:08]} Nxe7 {[%emt 0:00:02]} 43. Rd6 {[%emt 0:00:08]} Nf5 {[%emt 0:00:30]} 44. Bxf6+ {[%emt 0:00:10]} Kf8 {[%emt 0:00:01]} 45. Rd7 {[%emt 0:00:04]} Rc8 {[%emt 0:00:14]} 46. Rxh7 {[%emt 0:00:09]} 1-0

[Event "29th Czech Open-Rapid 2018"]
[Site "Pardubice"]
[Date "2018.07.19"]
[Round "4"]
[White "Shkuran, Daniil"]
[Black "Fedotov, Konstantin"]
[Result "1-0"]
[ECO "B15"]
[WhiteElo "2404"]
[BlackElo "2123"]
[Annotator "NA"]
[PlyCount "85"]
[EventDate "2018.07.18"]
[EventType "swiss"]
[EventCountry "CZE"]
[SourceTitle "playchess.com"]
[Source "ChessBase"]
[SourceQuality "1"]
[TimeControl "900+10"]

1. e4 {[%emt 0:00:00]} c6 {[%emt 0:00:00]} 2. d4 {[%emt 0:00:03]} d5 {[%emt 0:00:00]} 3. Nc3 {[%emt 0:00:01]} Nf6 {[%emt 0:00:00]} 4. e5 {[%emt 0:00:20]} Nfd7 {[%emt 0:00:00]} 5. f4 {[%emt 0:00:01]} e6 {[%emt 0:00:00]} 6. Nf3 {[%emt 0:00:01]} c5 {[%emt 0:00:00]} 7. Be3 {[%emt 0:00:18]} b6 {[%emt 0:00:28]} 8. Qd2 {[%emt 0:00:15]} Ba6 {[%emt 0:00:03]} 9. O-O-O {[%emt 0:00:32]} Bxf1 {[%emt 0:00:16]} 10. Rhxf1 {[%emt 0:00:01]} Nc6 {[%emt 0:00:14]} 11. f5 {[%emt 0:00:11]} cxd4 {[%emt 0:01:06]} 12. Bxd4 {[%emt 0:03:19]} Be7 {[%emt 0:02:37]} 13. fxe6 {[%emt 0:03:20]} fxe6 {[%emt 0:00:02]} 14. Qf4 {[%emt 0:00:01]} Nf8 {[%emt 0:01:09]} 15. Qg4 {[%emt 0:02:57]} g5 {[%emt 0:02:16]} 16. Qh5+ {[%emt 0:00:26]} Ng6 {[%emt 0:00:15]} 17. Be3 {[%emt 0:00:06]} g4 {[%emt 0:01:49]} 18. Ng5 {[%emt 0:01:22]} Qd7 {[%emt 0:03:24]} 19. Nf7 {[%emt 0:03:39]} Rf8 {[%emt 0:00:08]} 20. Qxh7 {[%emt 0:00:15]} Ncxe5 {[%emt 0:00:13]} 21. Nxe5 {[%emt 0:00:09]} Nxe5 {[%emt 0:00:01]} 22. Qh5+ {[%emt 0:00:03]} Nf7 {[%emt 0:00:52]} 23. Bh6 {[%emt 0:00:06]} O-O-O {[%emt 0:00:50]} 24. Bxf8 {[%emt 0:00:18]} Bg5+ {[%emt 0:00:02]} 25. Kb1 {[%emt 0:00:04]} Rxf8 {[%emt 0:00:01]} 26. Rxf7 {[%emt 0:00:14]} Qxf7 {[%emt 0:00:26]} 27. Qxg5 {[%emt 0:00:02]} Rg8 {[%emt 0:00:01]} 28. Qe5 {[%emt 0:00:05]} Qd7 {[%emt 0:00:39]} 29. Ne4 {[%emt 0:00:31]} Qe7 {[%emt 0:00:25]} 30. Nf6 {[%emt 0:00:26]} Rg7 {[%emt 0:00:34]} 31. Re1 {[%emt 0:00:16]} Rf7 {[%emt 0:00:02]} 32. Qxe6+ {[%emt 0:00:08]} Qxe6 {[%emt 0:00:04]} 33. Rxe6 {[%emt 0:00:01]} Kd8 {[%emt 0:00:01]} 34. a4 {[%emt 0:00:04]} d4 {[%emt 0:00:12]} 35. Nxg4 {[%emt 0:00:04]} Rf4 {[%emt 0:00:09]} 36. h3 {[%emt 0:00:06]} Kd7 {[%emt 0:00:02]} 37. Re2 {[%emt 0:00:03]} Kd6 {[%emt 0:00:03]} 38. Kc1 {[%emt 0:00:10]} a6 {[%emt 0:00:04]} 39. Kd2 {[%emt 0:00:03]} b5 {[%emt 0:00:01]} 40. axb5 {[%emt 0:00:01]} axb5 {[%emt 0:00:00]} 41. Rf2 {[%emt 0:00:03]} Re4 {[%emt 0:00:02]} 42. Kd3 {[%emt 0:00:01]} Re1 {[%emt 0:00:03]} 43. Kxd4 1-0

[Event "29th Czech Open-Rapid 2018"]
[Site "Pardubice"]
[Date "2018.07.19"]
[Round "4"]
[White "Piscopo, Pierluigi"]
[Black "Kukelko, Alexey"]
[Result "1-0"]
[ECO "B50"]
[WhiteElo "2402"]
[BlackElo "2109"]
[Annotator "NA"]
[PlyCount "55"]
[EventDate "2018.07.18"]
[EventType "swiss"]
[EventCountry "CZE"]
[SourceTitle "playchess.com"]
[Source "ChessBase"]
[SourceQuality "1"]
[TimeControl "900+10"]

1. e4 {[%emt 0:01:02]} c5 {[%emt 0:00:00]} 2. Nf3 {[%emt 0:00:11]} d6 {[%emt 0:00:00]} 3. Nc3 {[%emt 0:00:09]} Nf6 {[%emt 0:00:00]} 4. e5 {[%emt 0:00:02]} dxe5 {[%emt 0:00:05]} 5. Nxe5 {[%emt 0:00:03]} Nbd7 {[%emt 0:00:42]} 6. d4 {[%emt 0:01:39]} e6 {[%emt 0:01:15]} 7. Be3 {[%emt 0:03:16]} cxd4 {[%emt 0:02:23]} 8. Bxd4 {[%emt 0:00:05]} Be7 {[%emt 0:00:55]} 9. Bd3 {[%emt 0:01:40]} O-O {[%emt 0:00:26]} 10. O-O {[%emt 0:00:13]} Nc5 {[%emt 0:03:00]} 11. Be2 {[%emt 0:00:06]} a6 {[%emt 0:00:10]} 12. Qd2 {[%emt 0:00:09]} Qc7 {[%emt 0:00:52]} 13. Qe3 {[%emt 0:00:02]} b5 {[%emt 0:01:16]} 14. b4 {[%emt 0:01:08]} Ncd7 {[%emt 0:00:26]} 15. a4 {[%emt 0:03:33]} bxa4 {[%emt 0:00:31]} 16. Rxa4 {[%emt 0:00:01]} Bb7 {[%emt 0:01:48]} 17. Rfa1 {[%emt 0:00:01]} Rfc8 {[%emt 0:00:00]} 18. h3 {[%emt 0:00:58]} Nxe5 {[%emt 0:01:52]} 19. Bxe5 {[%emt 0:00:06]} Bd6 {[%emt 0:00:12]} 20. Bxd6 {[%emt 0:02:06]} Qxd6 21. Bf3 Bxf3 {[%emt 0:01:32]} 22. Qxf3 {[%emt 0:00:11]} Qd4 {[%emt 0:00:16]} 23. R1a3 {[%emt 0:00:10]} Qb6 {[%emt 0:00:01]} 24. b5 {[%emt 0:00:11]} a5 {[%emt 0:00:39]} 25. Rc4 {[%emt 0:00:41]} h6 26. Raa4 {[%emt 0:00:29]} Rab8 {[%emt 0:00:42]} 27. Qe3 {[%emt 0:00:08]} Nd5 {[%emt 0:00:13]} 28. Nxd5 1-0

[Event "29th Czech Open-Rapid 2018"]
[Site "Pardubice"]
[Date "2018.07.19"]
[Round "4"]
[White "Biolek, Richard"]
[Black "Chekletsov, Egor"]
[Result "1/2-1/2"]
[ECO "C42"]
[WhiteElo "2364"]
[BlackElo "2082"]
[Annotator "NA"]
[PlyCount "79"]
[EventDate "2018.07.18"]
[EventType "swiss"]
[EventCountry "CZE"]
[SourceTitle "playchess.com"]
[Source "ChessBase"]
[SourceQuality "1"]
[TimeControl "900+10"]

1. e4 {[%emt 0:07:43]} e5 {[%emt 0:00:00]} 2. Nf3 {[%emt 0:00:03]} Nf6 {[%emt 0:00:00]} 3. Nxe5 {[%emt 0:00:20]} Qe7 {[%emt 0:00:00]} 4. Nf3 {[%emt 0:00:52]} Nxe4 {[%emt 0:00:00]} 5. Be2 {[%emt 0:00:02]} d5 {[%emt 0:00:02]} 6. O-O {[%emt 0:00:02]} Qd8 {[%emt 0:00:21]} 7. c4 {[%emt 0:01:20]} d4 {[%emt 0:01:36]} 8. d3 {[%emt 0:00:03]} Nf6 {[%emt 0:00:03]} 9. Bg5 {[%emt 0:00:52]} Be7 {[%emt 0:00:42]} 10. b4 {[%emt 0:00:01]} O-O {[%emt 0:00:41]} 11. a3 {[%emt 0:00:12]} a5 {[%emt 0:00:01]} 12. b5 {[%emt 0:00:01]} h6 {[%emt 0:00:09]} 13. Bh4 {[%emt 0:00:04]} Bf5 {[%emt 0:00:24]} 14. Nbd2 {[%emt 0:00:10]} c5 {[%emt 0:02:06]} 15. bxc6 {[%emt 0:00:01]} Nxc6 {[%emt 0:00:03]} 16. Rb1 {[%emt 0:00:01]} Ne8 {[%emt 0:02:30]} 17. Bxe7 {[%emt 0:00:17]} Qxe7 {[%emt 0:00:02]} 18. Rb5 {[%emt 0:02:40]} Nd6 {[%emt 0:00:36]} 19. Rb3 {[%emt 0:00:39]} a4 {[%emt 0:00:54]} 20. Rb2 {[%emt 0:00:01]} Rfd8 {[%emt 0:02:10]} 21. Re1 {[%emt 0:00:02]} Ne8 {[%emt 0:00:07]} 22. Rb5 {[%emt 0:00:10]} Nd6 {[%emt 0:00:20]} 23. Rb2 {[%emt 0:00:01]} Ne8 {[%emt 0:00:02]} 24. Rb5 {[%emt 0:00:00]} Nd6 {[%emt 0:00:02]} 25. Rb2 {[%emt 0:00:11]} Ne8 {[%emt 0:00:03]} 26. Rb5 {[%emt 0:00:13]} Nd6 {[%emt 0:00:03]} 27. Bf1 {[%emt 0:00:03]} Qf8 {[%emt 0:02:45]} 28. Rb2 {[%emt 0:00:02]} Ne8 {[%emt 0:00:01]} 29. Rb5 {[%emt 0:00:06]} Nd6 {[%emt 0:00:13]} 30. Rb2 {[%emt 0:00:02]} Ne8 {[%emt 0:00:01]} 31. Qa1 {[%emt 0:00:21]} Na5 {[%emt 0:00:39]} 32. Rb5 {[%emt 0:00:16]} Nd6 {[%emt 0:01:47]} 33. Rd5 {[%emt 0:00:13]} Be6 {[%emt 0:00:12]} 34. Rxd4 {[%emt 0:00:06]} b5 {[%emt 0:00:11]} 35. cxb5 {[%emt 0:00:49]} Nxb5 {[%emt 0:00:02]} 36. Rxa4 {[%emt 0:00:02]} Nb3 {[%emt 0:00:15]} 37. Rxa8 {[%emt 0:00:23]} Nxa1 {[%emt 0:00:46]} 38. Rxd8 {[%emt 0:00:02]} Qxd8 {[%emt 0:00:02]} 39. Rxa1 {[%emt 0:00:02]} Qf6 {[%emt 0:00:01]} 40. Rb1 {[%emt 0:00:21]} 1/2-1/2

[Event "29th Czech Open-Rapid 2018"]
[Site "Pardubice"]
[Date "2018.07.19"]
[Round "4"]
[White "Grekh, Andrey"]
[Black "Tsvetkov, Andrey"]
[Result "0-1"]
[ECO "B92"]
[WhiteElo "2351"]
[BlackElo "2124"]
[Annotator "NA"]
[PlyCount "57"]
[EventDate "2018.07.18"]
[EventType "swiss"]
[EventCountry "CZE"]
[SourceTitle "playchess.com"]
[Source "ChessBase"]
[SourceQuality "1"]
[TimeControl "900+10"]

1. e4 {[%emt 0:01:24]} c5 {[%emt 0:00:00]} 2. Nf3 {[%emt 0:00:02]} d6 {[%emt 0:00:00]} 3. d4 {[%emt 0:00:04]} cxd4 {[%emt 0:00:00]} 4. Nxd4 {[%emt 0:00:01]} Nf6 {[%emt 0:00:00]} 5. Nc3 a6 6. Be2 {[%emt 0:00:52]} e5 {[%emt 0:00:00]} 7. Nf3 {[%emt 0:00:15]} Be7 {[%emt 0:00:00]} 8. O-O {[%emt 0:00:47]} O-O {[%emt 0:00:10]} 9. Bg5 {[%emt 0:01:19]} Be6 {[%emt 0:00:45]} 10. Bxf6 {[%emt 0:00:08]} Bxf6 {[%emt 0:00:02]} 11. Nd5 {[%emt 0:00:03]} Nd7 {[%emt 0:00:14]} 12. c4 {[%emt 0:02:06]} Rc8 {[%emt 0:00:06]} 13. b3 {[%emt 0:00:57]} Be7 {[%emt 0:00:21]} 14. Nxe7+ {[%emt 0:02:14]} Qxe7 {[%emt 0:00:01]} 15. Bd3 {[%emt 0:01:09]} Nc5 {[%emt 0:00:22]} 16. Ne1 {[%emt 0:00:21]} Bd7 {[%emt 0:00:42]} 17. Nc2 {[%emt 0:00:15]} Bc6 {[%emt 0:00:14]} 18. Re1 {[%emt 0:00:31]} Qg5 {[%emt 0:00:50]} 19. Ne3 {[%emt 0:01:52]} Bxe4 {[%emt 0:01:16]} 20. Bxe4 {[%emt 0:00:01]} Nxe4 {[%emt 0:00:01]} 21. Qd5 {[%emt 0:00:29]} Nc5 {[%emt 0:02:31]} 22. Rad1 {[%emt 0:00:48]} Rc6 {[%emt 0:02:03]} 23. b4 {[%emt 0:00:12]} Ne6 {[%emt 0:00:01]} 24. b5 {[%emt 0:00:09]} Nf4 {[%emt 0:01:56]} 25. Qf3 {[%emt 0:00:55]} axb5 {[%emt 0:00:00]} 26. cxb5 Rc3 {[%emt 0:00:01]} 27. Rxd6 {[%emt 0:00:45]} e4 {[%emt 0:03:24]} 28. Qg4 {[%emt 0:01:41]} Rxe3 {[%emt 0:00:07]} 29. Qd1 0-1